fUST/lending_fUST_20240303
["ID","MTS","AMOUNT","RATE_DAILY","PERIOD"]
[316415478,1709473836829,-500.0,0.00022692,2]
[316415479,1709473836838,-500.0,0.00022692,2]
[316415480,1709473836847,-503.86978364,0.00022692,2]
[316415481,1709473836856,-501.16619384,0.00022692,2]
[316415482,1709473836865,-244.5,0.00022692,2]
[316415483,1709473836874,-500.0,0.00022692,2]
[316415484,1709473836883,-500.0,0.00022692,2]
[316415485,1709473836892,-500.0,0.00022692,2]
[316415486,1709473836901,-500.0,0.00022692,2]
[316415487,1709473836910,-500.0,0.00022692,2]
[316415488,1709473836918,-500.0,0.00022692,2]
[316415489,1709473836928,-500.0,0.00022692,2]
[316415490,1709473836937,-500.0,0.00022692,2]
[316415491,1709473836945,-500.0,0.00022692,2]
[316415492,1709473836954,-500.0,0.00022692,2]
[316415493,1709473836964,-500.0,0.00022692,2]
[316415494,1709473836972,-500.0,0.00022692,2]
[316415495,1709473836981,-500.0,0.00022692,2]
[316415496,1709473836990,-256.5674801,0.00022692,2]
[316415497,1709473837000,-500.0,0.00022692,2]
[316415498,1709473837009,-500.0,0.00022692,2]
[316415499,1709473837018,-500.0,0.00022692,2]
[316415500,1709473837029,-500.0,0.00022692,2]
[316415501,1709473837042,-500.0,0.00022692,2]
[316415502,1709473837051,-915.12,0.00022692,2]
[316415503,1709473837061,-915.12,0.00022692,2]
[316415504,1709473837070,-500.0,0.00022692,2]
[316415505,1709473837079,-500.0,0.00022692,2]
[316415506,1709473837088,-500.0,0.00022692,2]
[316415507,1709473837097,-500.0,0.00022692,2]
[316415508,1709473837107,-500.0,0.00022692,2]
[316415509,1709473837117,-500.0,0.00022692,2]
[316415510,1709473837127,-500.0,0.00022692,2]
[316415511,1709473837139,-500.0,0.00022692,2]
[316415512,1709473837149,-500.0,0.00022692,2]
[316415513,1709473837157,-500.0,0.00022692,2]
[316415514,1709473837166,-500.0,0.00022692,2]
[316415515,1709473837176,-500.0,0.00022692,2]
[316415516,1709473837185,-500.0,0.00022692,2]
[316415517,1709473837194,-500.0,0.00022692,2]
[316415518,1709473837203,-500.0,0.00022692,2]
[316415519,1709473837212,-500.0,0.00022692,2]
[316415520,1709473837222,-500.0,0.00022692,2]
[316415521,1709473837232,-500.0,0.00022692,2]
[316415522,1709473837241,-500.0,0.00022692,2]
[316415523,1709473837250,-500.0,0.00022692,2]
[316415524,1709473837259,-437.78836776,0.00022692,2]
[316415525,1709473837268,-500.0,0.00022692,2]
[316415526,1709473837278,-500.0,0.00022692,2]
[316415527,1709473837287,-500.0,0.00022692,2]
[316415528,1709473837296,-500.0,0.00022692,2]
[316415529,1709473837305,-500.0,0.00022692,2]
[316415530,1709473837315,-417.82632395,0.00022692,2]
[316415531,1709473837324,-556.73,0.00022692,2]
[316415532,1709473837333,-556.73,0.00022692,2]
[316415533,1709473837343,-500.0,0.00022692,2]
[316415534,1709473837352,-500.0,0.00022692,2]
[316415535,1709473837361,-500.0,0.00022692,2]
[316415536,1709473837371,-500.0,0.00022692,2]
[316415537,1709473837380,-500.0,0.00022692,2]
[316415538,1709473837389,-500.0,0.00022692,2]
[316415539,1709473837398,-500.0,0.00022692,2]
[316415540,1709473837407,-500.0,0.00022692,2]
[316415541,1709473837416,-500.0,0.00022692,2]
[316415542,1709473837425,-500.0,0.00022692,2]
[316415543,1709473837434,-500.0,0.00022692,2]
[316415544,1709473837443,-500.0,0.00022692,2]
[316415545,1709473837453,-500.0,0.00022692,2]
[316415546,1709473837462,-500.9669518,0.00022692,2]
[316415547,1709473837471,-2052.04,0.00022692,2]
[316415548,1709473837479,-2052.04,0.00022692,2]
[316415549,1709473837488,-500.0,0.00022692,2]
[316415550,1709473837497,-500.0,0.00022692,2]
[316415551,1709473837506,-500.87865443,0.00022692,2]
[316415552,1709473837515,-1225.91,0.00022692,2]
[316415553,1709473837526,-1225.91,0.00022692,2]
[316415554,1709473837537,-1118.35,0.00022692,2]
[316415555,1709473837546,-1118.35,0.00022692,2]
[316415556,1709473837554,-504.30564958,0.00022692,2]
[316415557,1709473837563,-500.0,0.00022692,2]
[316415558,1709473837573,-500.0,0.00022692,2]
[316415559,1709473837582,-59510.84456801,0.00022693,2]
[316415560,1709473837591,-500.0,0.00022789,2]
[316415561,1709473837600,-500.0,0.0002279,2]
[316415562,1709473837609,-500.0,0.0002279,2]
[316415564,1709473837619,-500.0,0.0002279,2]
[316415566,1709473837629,-500.0,0.0002279,2]
[316415568,1709473837638,-500.0,0.0002279,2]
[316415571,1709473837657,-500.0,0.0002279,2]
[316415572,1709473837686,-500.0,0.0002279,2]
[316415573,1709473837695,-500.0,0.0002279,2]
[316415574,1709473837705,-500.0,0.0002279,2]
[316415575,1709473837713,-500.0,0.0002279,2]
[316415577,1709473837722,-500.0,0.0002279,2]
[316415579,1709473837730,-915.12,0.0002279,2]
[316415581,1709473837739,-500.0,0.0002279,2]
[316415582,1709473837748,-500.0,0.0002279,2]
[316415584,1709473837757,-500.0,0.0002279,2]
[316415585,1709473837765,-500.0,0.0002279,2]
[316415586,1709473837775,-500.0,0.0002279,2]
[316415587,1709473837784,-500.0,0.0002279,2]
[316415588,1709473837793,-500.0,0.0002279,2]
[316415589,1709473837802,-500.0,0.0002279,2]
[316415590,1709473837811,-500.0,0.0002279,2]
[316415591,1709473837820,-500.0,0.0002279,2]
[316415592,1709473837829,-500.0,0.0002279,2]
[316415593,1709473837839,-601.93171131,0.0002279,2]
[316415594,1709473837848,-500.0,0.0002279,2]
[316415596,1709473837857,-500.0,0.0002279,2]
[316415598,1709473837866,-500.0,0.0002279,2]
[316415599,1709473837875,-500.0,0.0002279,2]
[316415600,1709473837884,-500.0,0.0002279,2]
[316415601,1709473837893,-500.0,0.0002279,2]
[316415602,1709473837902,-500.0,0.0002279,2]
[316415603,1709473837911,-500.0,0.0002279,2]
[316415605,1709473837920,-500.0,0.0002279,2]
[316415607,1709473837929,-500.0,0.0002279,2]
[316415609,1709473837938,-502.43345678,0.0002279,2]
[316415611,1709473837946,-556.73,0.0002279,2]
[316415612,1709473837955,-500.0,0.0002279,2]
[316415614,1709473837964,-500.0,0.0002279,2]
[316415616,1709473837973,-500.0,0.0002279,2]
[316415618,1709473837982,-500.0,0.0002279,2]
[316415619,1709473837991,-500.0,0.0002279,2]
[316415621,1709473838000,-500.0,0.0002279,2]
[316415622,1709473838008,-500.0,0.0002279,2]
[316415624,1709473838017,-500.0,0.0002279,2]
[316415625,1709473838026,-4572.34,0.0002279,2]
[316415626,1709473838036,-2052.04,0.0002279,2]
[316415628,1709473838044,-500.0,0.0002279,2]
[316415629,1709473838053,-1225.91,0.0002279,2]
[316415630,1709473838062,-1118.35,0.0002279,2]
[316415631,1709473838071,-486.8,0.0002279,2]
[316415632,1709473838079,-486.8,0.0002279,2]
[316415633,1709473838089,-486.8,0.0002279,2]
[316415634,1709473838098,-486.8,0.0002279,2]
[316415635,1709473838107,-486.8,0.0002279,2]
[316415636,1709473838116,-486.8,0.0002279,2]
[316415637,1709473838124,-486.8,0.0002279,2]
[316415638,1709473838133,-486.8,0.0002279,2]
[316415639,1709473838143,-500.0,0.0002279,2]
[316415640,1709473838152,-500.0,0.0002279,2]
[316415641,1709473838161,-500.0,0.0002279,2]
[316415642,1709473838170,-500.0,0.0002279,2]
[316415643,1709473838179,-501.05754814,0.00022791,2]
[316415644,1709473838188,-512.74442217,0.00022791,2]
[316415645,1709473838197,-501.95237073,0.00022791,2]
[316415646,1709473838206,-629.05326636,0.00022791,2]
[316415647,1709473838215,-510.35524972,0.00022791,2]
[316415648,1709473838224,-500.15754696,0.00022791,2]
[316415649,1709473838233,-500.0,0.00022791,2]
[316415650,1709473838242,-500.0,0.00022791,2]
[316415651,1709473838251,-500.80094509,0.00022791,2]
[316415653,1709473838260,-349.58705847,0.00022791,2]
[316415654,1709473838268,-166.90503507,0.00022791,2]
[316415656,1709473838278,-500.0,0.00022791,2]
[316415658,1709473838287,-500.61781197,0.00022791,2]
[316415660,1709473838296,-509.44065992,0.00022791,2]
[316415661,1709473838305,-500.84289585,0.00022791,2]
[316415663,1709473838314,-501.27835696,0.00022791,2]
[316415664,1709473838323,-500.0,0.00022791,2]
[316415666,1709473838332,-500.0,0.00022791,2]
[316415668,1709473838341,-500.96270712,0.00022791,2]
[316415669,1709473838350,-500.72011047,0.00022791,2]
[316415670,1709473838359,-501.20083192,0.00022791,2]
[316415671,1709473838368,-500.0,0.00022791,2]
[316415672,1709473838378,-500.42839791,0.00022791,2]
[316415673,1709473838387,-501.43638075,0.00022791,2]
[316415674,1709473838397,-501.6938128,0.00022791,2]
[316415675,1709473838406,-500.0,0.00022791,2]
[316415676,1709473838416,-501.68481277,0.00022791,2]
[316415677,1709473838425,-500.93971326,0.00022791,2]
[316415678,1709473838434,-503.68773333,0.00022791,2]
[316415679,1709473838444,-500.0,0.00022791,2]
[316415680,1709473838453,-500.0,0.00022791,2]
[316415681,1709473838463,-504.02330497,0.00022791,2]
[316415682,1709473838472,-482.21507038,0.00022791,2]
[316415683,1709473838482,-643.18812899,0.00022791,2]
[316415684,1709473838491,-500.0,0.00022791,2]
[316415685,1709473838500,-500.0,0.00022791,2]
[316415686,1709473838509,-500.0,0.00022791,2]
[316415687,1709473838518,-500.0,0.00022791,2]
[316415688,1709473838528,-500.0,0.00022791,2]
[316415689,1709473838538,-500.0,0.00022791,2]
[316415690,1709473838549,-456.86577332,0.00022791,2]
[316415691,1709473838558,-500.0,0.00022791,2]
[316415692,1709473838567,-500.0,0.00022791,2]
[316415693,1709473838576,-500.0,0.00022791,2]
[316415694,1709473838586,-500.0,0.00022791,2]
[316415695,1709473838595,-501.63733233,0.00022791,2]
[316415696,1709473838604,-500.0,0.00022791,2]
[316415697,1709473838614,-317.97147063,0.00022791,2]
[316415698,1709473838623,-475.66214185,0.00022791,2]
[316415699,1709473838633,-500.0,0.00022791,2]
[316415700,1709473838642,-500.0,0.00022791,2]
[316415701,1709473838651,-501.53413149,0.00022791,2]
[316415702,1709473838661,-500.0,0.00022791,2]
[316415703,1709473838670,-419.85065833,0.00022791,2]
[316415704,1709473838679,-500.0,0.00022791,2]
[316415705,1709473838688,-500.0,0.00022791,2]
[316415706,1709473838699,-501.38620504,0.00022791,2]
[316415707,1709473838708,-500.0,0.00022791,2]
[316415708,1709473838717,-500.0,0.00022791,2]
[316415709,1709473838726,-447.96075002,0.00022791,2]
[316415710,1709473838736,-500.0,0.00022791,2]
[316415711,1709473838745,-500.0,0.00022791,2]
[316415712,1709473838754,-500.0,0.00022791,2]
[316415713,1709473838763,-500.0,0.00022791,2]
[316415714,1709473838772,-500.0,0.00022791,2]
[316415715,1709473838781,-500.0,0.00022791,2]
[316415716,1709473838868,-501.58786694,0.00022791,2]
[316415717,1709473838878,-500.0,0.00022791,2]
[316415718,1709473838890,-500.0,0.00022791,2]
[316415719,1709473838901,-500.0,0.00022791,2]
[316415720,1709473838912,-500.0,0.00022791,2]
[316415721,1709473838922,-500.0,0.00022791,2]
[316415722,1709473838932,-500.0,0.00022791,2]
[316415723,1709473838941,-500.0,0.00022791,2]
[316415724,1709473838950,-423.49,0.00022791,2]
[316415725,1709473838959,-155.19710032,0.00022791,2]
[316415726,1709473838968,-588.42265142,0.00022791,2]
[316415727,1709473838978,-501.0086922,0.00022791,2]
[316415728,1709473838986,-500.0,0.00022791,2]
[316415729,1709473838996,-500.0,0.00022791,2]
[316415730,1709473839005,-500.0,0.00022791,2]
[316415731,1709473839014,-500.0,0.00022791,2]
[316415732,1709473839023,-500.0,0.00022791,2]
[316415733,1709473839033,-500.0,0.00022791,2]
[316415734,1709473839044,-500.0,0.00022791,2]
[316415735,1709473839053,-500.0,0.00022791,2]
[316415736,1709473839063,-500.0,0.00022791,2]
[316415737,1709473839072,-500.0,0.00022791,2]
[316415738,1709473839081,-500.0,0.00022791,2]
[316415739,1709473839090,-500.0,0.00022791,2]
[316415740,1709473839099,-500.0,0.00022791,2]
[316415741,1709473839108,-500.0,0.00022791,2]
[316415742,1709473839118,-500.0,0.00022791,2]
[316415743,1709473839129,-915.12,0.00022791,2]
[316415744,1709473839140,-915.12,0.00022791,2]
[316415745,1709473839150,-915.12,0.00022791,2]
[316415746,1709473839160,-915.12,0.00022791,2]
[316415747,1709473839169,-302.01180288,0.00022791,2]
[316415748,1709473839179,-500.0,0.00022791,2]
[316415749,1709473839188,-500.0,0.00022791,2]
[316415750,1709473839197,-500.0,0.00022791,2]
[316415751,1709473839206,-500.0,0.00022791,2]
[316415752,1709473839216,-500.0,0.00022791,2]
[316415753,1709473839225,-500.0,0.00022791,2]
[316415754,1709473839234,-500.0,0.00022791,2]
[316415755,1709473839244,-500.0,0.00022791,2]
[316415756,1709473839253,-500.0,0.00022791,2]
[316415757,1709473839262,-500.0,0.00022791,2]
[316415758,1709473839271,-500.0,0.00022791,2]
[316415759,1709473839281,-500.0,0.00022791,2]
[316415760,1709473839290,-500.0,0.00022791,2]
[316415761,1709473839300,-500.0,0.00022791,2]
[316415762,1709473839310,-500.0,0.00022791,2]
[316415763,1709473839319,-500.0,0.00022791,2]
[316415764,1709473839329,-500.0,0.00022791,2]
[316415765,1709473839338,-500.0,0.00022791,2]
[316415766,1709473839347,-500.0,0.00022791,2]
[316415767,1709473839356,-421.53,0.00022791,2]
[316415768,1709473839366,-500.0,0.00022791,2]
[316415769,1709473839375,-500.0,0.00022791,2]
[316415770,1709473839384,-500.0,0.00022791,2]
[316415771,1709473839394,-500.0,0.00022791,2]
[316415772,1709473839404,-165.17561521,0.00022791,2]
[316415773,1709473839412,-556.73,0.00022791,2]
[316415774,1709473839422,-556.73,0.00022791,2]
[316415775,1709473839430,-556.73,0.00022791,2]
[316415776,1709473839440,-406.67226282,0.00022791,2]
[316415777,1709473839449,-556.73,0.00022791,2]
[316415778,1709473839458,-500.0,0.00022791,2]
[316415779,1709473839467,-500.0,0.00022791,2]
[316415780,1709473839476,-500.0,0.00022791,2]
[316415781,1709473839485,-500.0,0.00022791,2]
[316415782,1709473839494,-500.0,0.00022791,2]
[316415783,1709473839503,-500.0,0.00022791,2]
[316415784,1709473839512,-500.0,0.00022791,2]
[316415785,1709473839521,-608.48,0.00022791,2]
[316415786,1709473839538,-554.92242422,0.00022791,2]
[316415787,1709473839547,-500.0,0.00022791,2]
[316415788,1709473839557,-500.0,0.00022791,2]
[316415790,1709473839567,-500.0,0.00022791,2]
[316415791,1709473839578,-500.0,0.00022791,2]
[316415792,1709473839587,-4572.34,0.00022791,2]
[316415793,1709473839596,-2052.04,0.00022791,2]
[316415794,1709473839605,-2052.04,0.00022791,2]
[316415795,1709473839616,-2052.04,0.00022791,2]
[316415796,1709473839626,-2052.04,0.00022791,2]
[316415797,1709473839635,-500.0,0.00022791,2]
[316415798,1709473839643,-1225.91,0.00022791,2]
[316415799,1709473839652,-1225.91,0.00022791,2]
[316415800,1709473839661,-1225.91,0.00022791,2]
[316415801,1709473839670,-1225.91,0.00022791,2]
[316415802,1709473839679,-1118.35,0.00022791,2]
[316415803,1709473839688,-1118.35,0.00022791,2]
[316415804,1709473839697,-1118.35,0.00022791,2]
[316415805,1709473839707,-1118.35,0.00022791,2]
[316415806,1709473839716,-500.0,0.00022791,2]
[316415807,1709473839725,-500.0,0.00022791,2]
[316415808,1709473839734,-475.99993128,0.00022791,2]
[316415809,1709473839743,-500.0,0.00022791,2]
[316415810,1709473839753,-500.0,0.00022791,2]
[316415811,1709473839762,-500.0,0.00022791,2]
[316415812,1709473839771,-500.0,0.00022792,2]
[316415813,1709473839780,-500.0,0.00022792,2]
[316415814,1709473839790,-500.0,0.00022792,2]
[316415815,1709473839799,-500.54697198,0.00022792,2]
[316415816,1709473839807,-500.0,0.00022792,2]
[316415817,1709473839816,-500.77081773,0.00022792,2]
[316415818,1709473839825,-500.0,0.00022792,2]
[316415819,1709473839833,-500.0,0.00022792,2]
[316415820,1709473839842,-500.0,0.00022792,2]
[316415821,1709473839851,-499.94674065,0.00022792,2]
[316415822,1709473839860,-501.12522508,0.00022792,2]
[316415823,1709473839869,-341.01510804,0.00022792,2]
[316415824,1709473839878,-501.41800081,0.00022792,2]
[316415825,1709473839887,-500.0,0.00022792,2]
[316415826,1709473839895,-500.0,0.00022792,2]
[316415827,1709473839904,-156.53060815,0.00022792,2]
[316415828,1709473839913,-500.0,0.00022792,2]
[316415829,1709473839922,-500.0,0.00022792,2]
[316415830,1709473839931,-500.0,0.00022792,2]
[316415831,1709473839939,-500.0,0.00022792,2]
[316415832,1709473839948,-500.0,0.00022792,2]
[316415833,1709473839958,-500.0,0.00022792,2]
[316415834,1709473839967,-500.0,0.00022792,2]
[316415835,1709473839975,-500.86368941,0.00022792,2]
[316415836,1709473839984,-214.18205637,0.00022792,2]
[316415837,1709473839993,-500.0,0.00022792,2]
[316415838,1709473840002,-500.0,0.00022792,2]
[316415839,1709473840011,-501.28836524,0.00022792,2]
[316415840,1709473840020,-501.71518943,0.00022792,2]
[316415841,1709473840029,-616.07707314,0.00022792,2]
[316415842,1709473840038,-501.82289924,0.00022792,2]
[316415843,1709473840047,-500.0,0.00022792,2]
[316415844,1709473840056,-500.0,0.00022792,2]
[316415845,1709473840065,-500.0,0.00022792,2]
[316415846,1709473840074,-187.9466243,0.00022792,2]
[316415847,1709473840083,-501.95700991,0.00022792,2]
[316415848,1709473840091,-500.0,0.00022792,2]
[316415849,1709473840101,-500.47334013,0.00022792,2]
[316415851,1709473840110,-500.0,0.00022792,2]
[316415852,1709473840119,-498.96728137,0.00022792,2]
[316415853,1709473840128,-500.93155288,0.00022792,2]
[316415854,1709473840137,-501.66583531,0.00022792,2]
[316415855,1709473840146,-205.31351669,0.00022792,2]
[316415856,1709473840155,-528.64669507,0.00022792,2]
[316415857,1709473840165,-501.26937678,0.00022792,2]
[316415858,1709473840173,-646.60151528,0.00022792,2]
[316415859,1709473840183,-500.0,0.00022792,2]
[316415860,1709473840192,-500.0,0.00022792,2]
[316415861,1709473840201,-500.0,0.00022792,2]
[316415862,1709473840211,-500.39954071,0.00022792,2]
[316415863,1709473840220,-500.0,0.00022792,2]
[316415864,1709473840230,-501.62372808,0.00022792,2]
[316415865,1709473840239,-431.87225805,0.00022792,2]
[316415866,1709473840248,-501.36203959,0.00022792,2]
[316415867,1709473840257,-501.69258461,0.00022792,2]
[316415868,1709473840267,-500.0,0.00022792,2]
[316415870,1709473840275,-500.0,0.00022792,2]
[316415871,1709473840284,-500.0,0.00022792,2]
[316415873,1709473840295,-500.0,0.00022792,2]
[316415874,1709473840304,-501.21309478,0.00022792,2]
[316415875,1709473840313,-500.0,0.00022792,2]
[316415876,1709473840322,-405.93239985,0.00022792,2]
[316415877,1709473840331,-500.0,0.00022792,2]
[316415878,1709473840340,-500.64234869,0.00022792,2]
[316415879,1709473840349,-500.56435083,0.00022792,2]
[316415880,1709473840358,-500.0,0.00022792,2]
[316415881,1709473840367,-500.0,0.00022792,2]
[316415882,1709473840377,-500.0,0.00022792,2]
[316415883,1709473840386,-500.5466071,0.00022792,2]
[316415884,1709473840395,-500.0,0.00022792,2]
[316415885,1709473840404,-500.0,0.00022792,2]
[316415886,1709473840413,-500.0,0.00022792,2]
[316415887,1709473840422,-501.57017366,0.00022792,2]
[316415888,1709473840431,-500.67759965,0.00022792,2]
[316415889,1709473840440,-489.45531375,0.00022792,2]
[316415890,1709473840449,-501.08315617,0.00022792,2]
[316415891,1709473840458,-500.9739936,0.00022792,2]
[316415892,1709473840467,-500.0,0.00022792,2]
[316415893,1709473840476,-501.91747292,0.00022792,2]
[316415894,1709473840485,-501.74279816,0.00022792,2]
[316415895,1709473840495,-500.0,0.00022792,2]
[316415896,1709473840505,-500.0,0.00022792,2]
[316415897,1709473840513,-500.0,0.00022792,2]
[316415898,1709473840522,-500.0,0.00022792,2]
[316415899,1709473840532,-500.0,0.00022792,2]
[316415900,1709473840545,-500.0,0.00022792,2]
[316415901,1709473840554,-629.11632108,0.00022792,2]
[316415902,1709473840563,-502.08881434,0.00022792,2]
[316415903,1709473840572,-500.0,0.00022792,2]
[316415904,1709473840582,-500.0,0.00022792,2]
[316415905,1709473840591,-503.4834926,0.00022792,2]
[316415906,1709473840600,-501.12951574,0.00022792,2]
[316415907,1709473840610,-648.15859824,0.00022792,2]
[316415908,1709473840620,-500.85537898,0.00022792,2]
[316415909,1709473840629,-500.0,0.00022792,2]
[316415910,1709473840638,-582.39313685,0.00022792,2]
[316415911,1709473840647,-500.0,0.00022792,2]
[316415912,1709473840656,-500.0,0.00022792,2]
[316415913,1709473840665,-500.0,0.00022792,2]
[316415914,1709473840674,-500.0,0.00022792,2]
[316415915,1709473840683,-500.0,0.00022792,2]
[316415916,1709473840692,-500.0,0.00022792,2]
[316415917,1709473840701,-500.68483796,0.00022792,2]
[316415918,1709473840711,-500.57542758,0.00022792,2]
[316415919,1709473840720,-639.73097512,0.00022792,2]
[316415920,1709473840728,-500.87948269,0.00022792,2]
[316415921,1709473840738,-500.0,0.00022792,2]
[316415922,1709473840747,-500.0,0.00022792,2]
[316415923,1709473840756,-300.45648391,0.00022792,2]
[316415924,1709473840765,-500.0,0.00022792,2]
[316415925,1709473840774,-500.0,0.00022792,2]
[316415926,1709473840854,-500.0,0.00022792,2]
[316415927,1709473840864,-500.0,0.00022792,2]
[316415928,1709473840873,-500.0,0.00022792,2]
[316415929,1709473840882,-500.0,0.00022792,2]
[316415930,1709473840891,-570.2,0.00022792,2]
[316415931,1709473840900,-500.0,0.00022792,2]
[316415932,1709473840910,-500.0,0.00022792,2]
[316415933,1709473840919,-501.12177723,0.00022792,2]
[316415934,1709473840928,-4572.34,0.00022792,2]
[316415935,1709473840937,-4572.34,0.00022792,2]
[316415936,1709473840946,-500.0,0.00022925,2]
[316415938,1709473840955,-317.86,0.00022925,2]
[316415940,1709473840964,-500.0,0.00022925,2]
[316415942,1709473840973,-500.0,0.00022925,2]
[316415944,1709473840982,-500.0,0.00022925,2]
[316415946,1709473840991,-500.0,0.00022925,2]
[316415948,1709473841000,-500.0,0.00022925,2]
[316415950,1709473841009,-500.0,0.00022925,2]
[316415952,1709473841019,-215.67863672,0.00022926,2]
[316415954,1709473841028,-36643.11720392,0.00022926,5]
[316415956,1709473841037,-38548.24569753,0.00022926,5]
[316415958,1709473841047,-315.21251671,0.00022926,2]
[316415960,1709473841056,-533.684,0.00022926,2]
[316415962,1709473841065,-500.0,0.00022926,2]
[316415964,1709473841074,-5000.0,0.00022926,5]
[316415966,1709473841083,-4572.34,0.00022927,2]
[316415968,1709473841092,-3583.52762687,0.00022928,5]
[316415970,1709473841101,-500.0,0.00022928,2]
[316415972,1709473841111,-500.0,0.00022928,2]
[316415974,1709473841120,-50000.0,0.00022929,5]
[316415976,1709473841129,-500.0,0.0002293,2]
[316415978,1709473841138,-500.0,0.0002293,2]
[316415980,1709473841147,-500.0,0.0002293,2]
[316415982,1709473841156,-500.0,0.0002293,2]
[316415984,1709473841165,-915.12,0.0002293,2]
[316415986,1709473841174,-500.0,0.0002293,2]
[316415988,1709473841183,-500.0,0.0002293,2]
[316415990,1709473841192,-391.71956081,0.0002293,2]
[316415992,1709473841201,-556.73,0.0002293,2]
[316415994,1709473841211,-500.0,0.0002293,2]
[316415997,1709473841222,-2052.04,0.0002293,2]
[316415999,1709473841231,-1225.91,0.0002293,2]
[316416001,1709473841240,-1118.35,0.0002293,2]
[316416002,1709473841249,-2040.51382137,0.00022931,5]
[316416004,1709473841258,-429.02,0.00022936,2]
[316416006,1709473841267,-500.0,0.00022936,2]
[316416008,1709473841276,-500.0,0.00022936,2]
[316416010,1709473841286,-11798.71393555,0.00022937,5]
[316416012,1709473841296,-306.0,0.00022986,2]
[316416014,1709473841305,-672.04549962,0.00022991,2]
[316416016,1709473841314,-155.0,0.00022998,2]
[316416019,1709473841324,-500.0,0.00022999,2]
[316416021,1709473841333,-500.0,0.00022999,2]
[316416022,1709473841342,-500.0,0.00022999,2]
[316416025,1709473841351,-1500.0,0.00023,2]
[316416027,1709473841361,-1511.54,0.00023,2]
[316416029,1709473841370,-1500.0,0.00023,2]
[316416031,1709473841379,-1500.0,0.00023,2]
[316416033,1709473841389,-1500.0,0.00023,2]
[316416034,1709473841397,-1500.0,0.00023,2]
[316416036,1709473841407,-1500.0,0.00023,2]
[316416038,1709473841416,-1500.0,0.00023,2]
[316416040,1709473841424,-1500.0,0.00023,2]
[316416042,1709473841433,-4628.0,0.00023,7]
[316416044,1709473841443,-200.61060729,0.00023,2]
[316416046,1709473841451,-1000.0,0.00023125,2]
[316416048,1709473841460,-153.0,0.00023178,2]
[316416050,1709473841470,-154.6121894,0.00023178,2]
[316416052,1709473841479,-153.0,0.00023178,2]
[316416054,1709473841489,-153.0,0.00023178,2]
[316416056,1709473841498,-153.0,0.00023178,2]
[316416058,1709473841507,-153.0,0.00023178,2]
[316416060,1709473841516,-153.0,0.00023178,2]
[316416062,1709473841526,-153.0,0.00023178,2]
[316416064,1709473841541,-672.04549962,0.00023293,2]
[316416066,1709473841550,-1000.0,0.00023325,2]
[316416068,1709473841559,-1000.0,0.00023524,2]
[316416070,1709473841570,-500.0,0.00023593,2]
[316416072,1709473841579,-672.04549962,0.00023594,2]
[316416074,1709473841588,-172.85,0.00023596,2]
[316416076,1709473841597,-500.0,0.00023596,2]
[316416078,1709473841606,-500.0,0.00023596,2]
[316416080,1709473841617,-915.12,0.00023596,2]
[316416082,1709473841627,-219.59732707,0.00023596,2]